bitfinex/quotes_BTCUSD_20250414
["timestamp","ask_amount","ask_price","bid_price","bid_amount"]
[1744629093435,0.00046095,84709.0,84708.0,0.02175361]
[1744629093938,0.00046095,84709.0,84708.0,0.25048315]
[1744629094342,0.00046095,84709.0,84708.0,0.25785861]
[1744629094459,0.00046095,84709.0,84708.0,0.42540015]
[1744629096136,0.00046095,84709.0,84708.0,0.30455861]
[1744629096335,0.00046095,84709.0,84708.0,0.06845361]
[1744629096552,0.23656295,84709.0,84708.0,0.02175361]
[1744629096765,0.57656295,84709.0,84708.0,0.02175361]
[1744629097120,0.57656295,84709.0,84708.0,0.01437815]
[1744629097322,0.69740449,84709.0,84708.0,0.01437815]
[1744629097540,0.69740449,84709.0,84708.0,0.002]
[1744629097785,0.236158,84689.0,84688.0,0.0008444]
[1744629101332,0.011806,84697.0,84693.0,0.011807]
[1744629101489,0.011806,84696.0,84691.0,0.011807]
[1744629101686,0.236147,84693.0,84688.0,0.0126524]
[1744629101884,0.236158,84689.0,84688.0,0.0008444]
[1744629102426,0.576158,84689.0,84688.0,0.0008444]
[1744629102583,0.86379954,84689.0,84688.0,0.0008444]
[1744629103209,0.576177,84682.0,84681.0,0.0028422]
[1744629103487,0.69701854,84682.0,84681.0,0.0028422]
[1744629104468,0.69701854,84682.0,84681.0,0.00292959]
[1744629106766,0.86385854,84682.0,84681.0,0.00292959]
[1744629108011,1.28035854,84682.0,84681.0,0.00292959]
[1744629109433,1.159517,84682.0,84681.0,0.00292959]
[1744629111494,0.992677,84682.0,84681.0,0.00292959]
[1744629111696,1.159477,84682.0,84681.0,0.00292959]
[1744629112417,1.28031854,84682.0,84681.0,0.00292959]
[1744629112826,1.11351854,84682.0,84681.0,0.00292959]
[1744629113014,1.28031854,84682.0,84681.0,0.00292959]
[1744629114505,1.28231854,84682.0,84681.0,0.00292959]
[1744629114908,1.28431854,84682.0,84681.0,0.00292959]
[1744629118533,1.163477,84682.0,84681.0,0.00292959]
[1744629118713,1.163517,84682.0,84681.0,0.00292959]
[1744629122997,0.92734,84682.0,84681.0,0.00292959]
[1744629123215,0.004,84682.0,84681.0,0.00292959]
[1744629123420,0.4165,84710.0,84707.0,0.011805]
[1744629123624,0.011804,84716.0,84711.0,0.011804]
[1744629123827,0.34,84713.0,84711.0,0.011804]
[1744629124029,0.576093,84713.0,84708.0,0.060905]
[1744629124243,0.34,84710.0,84708.0,0.0491]
[1744629124438,0.576102,84710.0,84708.0,0.0491]
[1744629124642,0.24793,84701.0,84700.0,0.0452]
[1744629124867,0.011806,84701.0,84700.0,0.0452]
[1744629125003,0.247919,84705.0,84700.0,0.0452]
[1744629125203,0.24811128,84710.0,84704.0,0.011805]
[1744629125401,0.34,84708.0,84705.0,0.011805]
[1744629125659,0.351805,84706.0,84702.0,0.247925]
[1744629125838,0.351805,84706.0,84703.0,0.236119]
[1744629126042,0.34,84706.0,84704.0,0.236115]
[1744629126540,0.34,84706.0,84703.0,0.247924]
[1744629126768,0.011805,84707.0,84704.0,0.00737651]
[1744629126981,0.011805,84707.0,84704.0,0.24349151]
[1744629127462,0.011805,84707.0,84704.0,0.25529651]
[1744629127664,0.011805,84707.0,84704.0,0.24792]
[1744629128203,0.001,84707.0,84705.0,0.236111]
[1744629128571,0.001,84707.0,84706.0,0.0073759]
[1744629129112,0.236105,84708.0,84706.0,0.0073759]
[1744629129319,0.247923,84704.0,84701.0,0.01674373]
[1744629129534,0.236121,84703.0,84701.0,0.01674373]
[1744629130114,0.236121,84703.0,84701.0,0.00936783]
[1744629130394,0.011806,84696.0,84693.0,0.0073759]
[1744629130615,0.34,84694.0,84693.0,0.0073759]
[1744629130744,0.011808,84687.0,84684.0,0.4187]
[1744629130949,0.011808,84687.0,84681.0,0.0028422]
[1744629131150,0.236177,84682.0,84681.0,0.0028422]
[1744629132490,0.236177,84682.0,84681.0,0.00292959]
[1744629132673,0.236177,84682.0,84681.0,0.01192959]
[1744629134270,0.236177,84682.0,84681.0,0.00292959]
[1744629134518,0.236177,84682.0,84681.0,0.00892959]
[1744629135483,0.576177,84682.0,84681.0,0.00892959]
[1744629135869,0.69701854,84682.0,84681.0,0.00892959]
[1744629136070,1.11351854,84682.0,84681.0,0.00892959]
[1744629136281,1.12805939,84682.0,84681.0,0.00892959]
[1744629137450,1.12805939,84682.0,84681.0,0.00292959]
[1744629137649,1.12805939,84682.0,84681.0,0.00692959]
[1744629137806,1.12805939,84682.0,84681.0,0.00892959]
[1744629137978,1.12805939,84682.0,84681.0,0.00492959]
[1744629138408,1.13105939,84682.0,84681.0,0.00492959]
[1744629138611,0.995677,84682.0,84681.0,0.00292959]
[1744629138819,0.997677,84682.0,84681.0,0.00292959]
[1744629139337,0.995677,84682.0,84681.0,0.00292959]
[1744629139737,1.11651854,84682.0,84681.0,0.00292959]
[1744629140461,1.11351854,84682.0,84681.0,0.00292959]
[1744629140892,1.11651854,84682.0,84681.0,0.00292959]
[1744629141125,1.11851854,84682.0,84681.0,0.00292959]
[1744629141295,1.13305939,84682.0,84681.0,0.00292959]
[1744629142075,1.11851854,84682.0,84681.0,0.00292959]
[1744629142278,0.997677,84682.0,84681.0,0.00292959]
[1744629142474,0.7615,84682.0,84681.0,0.00292959]
[1744629143043,0.997677,84682.0,84681.0,0.00292959]
[1744629143579,0.994677,84682.0,84681.0,0.00292959]
[1744629144212,0.992677,84682.0,84681.0,0.00292959]
[1744629144412,0.996677,84682.0,84681.0,0.00292959]
[1744629144740,0.994677,84682.0,84681.0,0.00292959]
[1744629145235,0.996677,84682.0,84681.0,0.00292959]
[1744629145735,0.994677,84682.0,84681.0,0.00292959]
[1744629145936,0.995677,84682.0,84681.0,0.00292959]
[1744629146093,0.579177,84682.0,84681.0,0.00292959]
[1744629146704,0.577177,84682.0,84681.0,0.00292959]
[1744629147044,0.578177,84682.0,84681.0,0.00292959]
[1744629149577,0.69901854,84682.0,84681.0,0.00292959]
[1744629149780,0.578177,84682.0,84681.0,0.00292959]
[1744629153647,0.576177,84682.0,84681.0,0.00292959]
[1744629153861,0.73903831,84682.0,84681.0,0.00292959]
[1744629154007,0.69901854,84682.0,84681.0,0.00292959]
[1744629154654,0.69901854,84682.0,84678.0,0.0008446]
[1744629154655,0.576225,84665.0,84664.0,0.0008446]
[1744629155027,0.69706654,84665.0,84664.0,0.0008446]
[1744629155431,0.83233587,84665.0,84664.0,0.0008446]
[1744629155635,0.83233587,84665.0,84654.0,0.0008446]
[1744629155636,0.576253,84655.0,84654.0,0.0008446]
[1744629156851,0.58780468,84655.0,84654.0,0.0008446]
[1744629157855,0.75556468,84655.0,84654.0,0.0008446]
[1744629159265,0.75656468,84655.0,84654.0,0.0008446]
[1744629159825,0.76557253,84655.0,84654.0,0.0008446]
[1744629161034,0.18031168,84655.0,84654.0,0.2838996]
[1744629161242,0.01355168,84655.0,84654.0,0.2838996]
[1744629161413,0.002,84655.0,84654.0,0.2838996]
[1744629161557,0.002,84655.0,84654.0,0.40474114]
[1744629161990,0.247987,84682.0,84678.0,0.058909]
[1744629162184,0.24799,84681.0,84678.0,0.0471]
[1744629162388,0.236184,84680.0,84678.0,0.0471]
[1744629162587,0.24808831,84680.0,84678.0,0.0471]
[1744629162987,0.011811,84666.0,84660.0,0.011811]
[1744629163229,0.011811,84666.0,84663.0,0.236229]
[1744629163642,0.236217,84668.0,84664.0,0.285527]
[1744629163847,0.01181,84672.0,84665.0,0.248034]
[1744629164015,0.236203,84673.0,84670.0,0.23621]
[1744629164470,0.248013,84673.0,84670.0,0.23621]
[1744629165246,0.34,84677.0,84676.0,0.011809]
[1744629165443,0.34,84678.0,84676.0,0.248003]
[1744629165668,0.351809,84678.0,84670.0,0.250018]
[1744629165872,0.2362,84674.0,84671.0,0.236207]
[1744629166277,0.587998,84678.0,84675.0,0.248004]
[1744629166481,0.587998,84678.0,84675.0,0.011809]
[1744629166824,0.00012514,84682.0,84681.0,0.23618]
[1744629167124,0.00012514,84682.0,84681.0,0.4089829]
[1744629167401,0.00012514,84682.0,84681.0,0.40662154]
[1744629167960,0.00112514,84682.0,84681.0,0.40762154]
[1744629168295,0.00012514,84682.0,84681.0,0.40762154]
[1744629168518,0.00012514,84682.0,84681.0,0.41362154]
[1744629168727,0.00012514,84682.0,84681.0,0.29278]
[1744629168877,0.00012514,84682.0,84681.0,0.0566]
[1744629169590,0.00012514,84682.0,84681.0,0.0556]
[1744629169801,0.00012514,84682.0,84681.0,0.0586]
[1744629170173,0.00012514,84682.0,84681.0,0.28578]
[1744629170394,0.23630214,84682.0,84681.0,0.0516]
[1744629170596,0.23630214,84682.0,84681.0,0.005]
[1744629171413,0.00012514,84682.0,84681.0,0.23918]
[1744629171820,0.00012514,84682.0,84681.0,0.23618]
[1744629172064,0.00012514,84682.0,84681.0,0.23918]
[1744629172917,0.00012514,84682.0,84681.0,0.24118]
[1744629175531,0.24798,84684.0,84681.0,0.24118]
[1744629175757,0.247982,84684.0,84681.0,0.005]
[1744629175952,0.236174,84683.0,84681.0,0.005]
[1744629176304,0.236177,84682.0,84681.0,0.003]
[1744629176631,0.247981,84684.0,84681.0,0.005]
[1744629176831,0.236175,84683.0,84681.0,0.002]
[1744629177129,0.236177,84683.0,84681.0,0.002]
[1744629177436,0.236177,84682.0,84680.0,0.011809]
[1744629177750,0.236177,84682.0,84681.0,0.005]
[1744629177751,0.247985,84682.0,84681.0,0.005]
[1744629177961,0.247985,84682.0,84681.0,0.002]
[1744629178101,0.247985,84682.0,84681.0,0.003]
[1744629178529,0.011808,84682.0,84679.0,0.247994]
[1744629178740,0.011808,84682.0,84680.0,0.004]
[1744629178988,0.236149,84692.0,84690.0,0.011807]
[1744629179206,0.34,84691.0,84689.0,0.247963]
[1744629179434,0.34,84691.0,84690.0,0.236155]
[1744629179680,0.51844703,84697.0,84696.0,0.236138]
[1744629180153,0.34,84693.0,84692.0,0.0464]
[1744629180399,0.236162,84688.0,84686.0,0.0464]
[1744629180598,0.247964,84690.0,84686.0,0.294373]
[1744629180805,0.011807,84689.0,84686.0,0.0464]
[1744629180982,0.236162,84688.0,84686.0,0.0464]
[1744629181158,0.011808,84686.0,84680.0,0.0463]
[1744629181373,0.011809,84679.0,84676.0,0.01844455]
[1744629181579,0.247995,84679.0,84676.0,0.01844455]
[1744629181777,0.236185,84681.0,84678.0,0.236188]
[1744629182001,0.011808,84683.0,84678.0,0.011809]
[1744629182200,0.247988,84682.0,84678.0,0.011809]
[1744629182561,0.247988,84682.0,84678.0,0.247997]
[1744629182762,0.236155,84690.0,84687.0,0.236163]
[1744629183008,0.236161,84688.0,84685.0,0.011808]
[1744629183209,0.01176703,84697.0,84692.0,0.011807]
[1744629183433,0.34,84698.0,84696.0,0.236138]
[1744629183676,0.34,84698.0,84696.0,0.236137]
[1744629183876,0.576133,84698.0,84695.0,0.247948]
[1744629184089,0.59974544,84698.0,84695.0,0.247948]
[1744629184617,0.59974544,84698.0,84692.0,0.294655]
[1744629184618,0.576147,84693.0,84692.0,0.0467]
[1744629185801,0.34,84693.0,84692.0,0.0467]
[1744629186213,0.34,84693.0,84692.0,0.282849]
[1744629187116,0.34,84693.0,84692.0,0.0467]
[1744629187331,0.34,84693.0,84692.0,0.282849]
[1744629187503,0.34,84693.0,84692.0,0.0467]
[1744629187709,0.34,84693.0,84692.0,0.282849]
[1744629189464,0.34,84693.0,84692.0,0.0467]
[1744629189795,0.34,84693.0,84692.0,0.282849]
[1744629190350,0.576147,84693.0,84692.0,0.0467]
[1744629190599,0.34,84693.0,84692.0,0.0467]
[1744629191222,0.236158,84689.0,84687.0,0.011808]
[1744629191476,0.236163,84687.0,84685.0,0.01844441]
[1744629191679,0.236166,84686.0,84685.0,0.01844441]
[1744629191850,0.34,84694.0,84691.0,0.23615]
[1744629192026,0.34,84694.0,84693.0,0.236147]
[1744629192435,0.34,84694.0,84693.0,0.284647]
[1744629192998,0.34,84697.0,84696.0,0.236138]
[1744629194678,0.341,84697.0,84696.0,0.236138]
[1744629194877,0.342,84697.0,84695.0,0.236141]
[1744629195078,0.342,84697.0,84696.0,0.236138]
[1744629195941,0.001,84697.0,84696.0,0.236138]
[1744629196148,0.002,84697.0,84696.0,0.283938]
[1744629196302,0.002,84697.0,84696.0,0.40477954]
[1744629196707,0.001,84697.0,84696.0,0.40477954]
[1744629196909,0.002,84697.0,84696.0,0.40477954]
[1744629197114,0.002,84697.0,84696.0,0.236138]
[1744629197296,1.0,84698.0,84696.0,0.236138]
[1744629197498,1.0,84698.0,84696.0,0.238138]
[1744629198277,1.0,84698.0,84696.0,0.239138]
[1744629198436,1.0,84698.0,84696.0,0.237138]
[1744629199137,1.0,84698.0,84697.0,0.236135]
[1744629200482,1.0,84698.0,84697.0,0.237135]
[1744629200630,1.0,84698.0,84697.0,0.238135]
[1744629206069,1.0,84698.0,84697.0,0.35897654]
[1744629206944,1.0,84698.0,84697.0,0.002]
[1744629207163,1.236133,84698.0,84697.0,0.002]
[1744629207370,1.0,84698.0,84697.0,0.002]
[1744629207575,1.236133,84698.0,84697.0,0.002]
[1744629210698,1.576133,84698.0,84697.0,0.002]
[1744629210896,1.576133,84698.0,84697.0,0.001]
[1744629211527,0.236147,84693.0,84692.0,0.01844381]
[1744629213104,0.236147,84693.0,84692.0,0.01944381]
[1744629213915,1.34,84698.0,84693.0,0.011807]
[1744629214048,1.34,84698.0,84697.0,0.236135]
[1744629214250,1.0,84698.0,84697.0,0.285235]
[1744629215667,1.0,84698.0,84697.0,0.286235]
[1744629220609,1.0,84698.0,84697.0,0.40707654]
[1744629220988,0.0004223,84722.0,84715.0,0.236085]
[1744629221190,0.00088437,84716.0,84715.0,0.40828705]
[1744629221391,0.00088437,84716.0,84715.0,0.46310058]
[1744629221902,0.00088437,84716.0,84715.0,0.17721558]
[1744629222100,0.00088437,84716.0,84715.0,0.05637404]
[1744629222339,0.23696637,84716.0,84715.0,0.01137404]
[1744629222598,0.23696637,84716.0,84715.0,0.004]
[1744629223742,0.23696637,84716.0,84715.0,0.006]
[1744629224176,0.23696637,84716.0,84715.0,0.002]
[1744629224377,0.57696637,84716.0,84715.0,0.007]
[1744629224592,0.69780791,84716.0,84715.0,0.007]
[1744629224995,1.16836254,84716.0,84715.0,0.009]
[1744629225201,1.16836254,84716.0,84715.0,0.002]
[1744629225604,1.16836254,84716.0,84705.0,0.01844109]
[1744629225605,0.57611,84706.0,84705.0,0.01844109]
[1744629225810,0.86343154,84706.0,84705.0,0.01844109]
[1744629226016,0.236175,84683.0,84677.0,0.059209]
[1744629226206,0.236175,84683.0,84677.0,0.41624154]
[1744629226406,0.011808,84683.0,84679.0,0.011809]
[1744629226657,0.011808,84687.0,84681.0,0.011809]
[1744629226828,0.011808,84687.0,84678.0,0.26644258]
[1744629226829,0.34,84706.0,84702.0,0.011806]
[1744629227175,0.0014223,84716.0,84715.0,0.236085]
[1744629227366,0.00188437,84716.0,84715.0,0.236085]
[1744629227777,0.00088437,84716.0,84715.0,0.24547409]
[1744629227981,0.00088437,84716.0,84715.0,0.00938909]
[1744629228368,0.00088437,84716.0,84715.0,0.01676411]
[1744629228797,0.00088437,84716.0,84715.0,0.01676239]
[1744629229203,0.00188437,84716.0,84715.0,0.01876239]
[1744629229610,0.00188437,84716.0,84715.0,0.00937504]
[1744629229824,0.00088437,84716.0,84715.0,0.00937504]
[1744629230400,0.00088437,84716.0,84715.0,0.002]
[1744629231381,0.00088437,84716.0,84715.0,0.00937504]
[1744629231804,0.00088437,84716.0,84715.0,0.002]
[1744629235180,0.23696637,84716.0,84715.0,0.002]
[1744629236669,0.00088437,84716.0,84715.0,0.00937504]
[1744629237228,0.00088437,84716.0,84715.0,0.24546004]
[1744629237809,0.00088437,84716.0,84715.0,0.25484739]
[1744629238386,0.00088437,84716.0,84715.0,0.01876239]
[1744629238584,0.00088437,84716.0,84715.0,0.25484739]
[1744629241035,0.00088437,84716.0,84715.0,0.24546004]
[1744629243275,0.00088437,84716.0,84715.0,0.25484655]
[1744629243964,0.00088437,84716.0,84715.0,0.00937504]
[1744629244368,0.34088437,84716.0,84715.0,0.00937504]
[1744629244548,0.34088437,84716.0,84715.0,0.002]
[1744629245536,0.00088437,84716.0,84713.0,0.236089]
[1744629245741,0.34,84714.0,84711.0,0.236095]
[1744629245966,0.34,84714.0,84712.0,0.236091]
[1744629246776,0.00088437,84716.0,84714.0,0.236087]
[1744629248195,0.00088437,84716.0,84714.0,0.237087]
[1744629249073,0.00088437,84716.0,84714.0,0.001]
[1744629249284,0.00088437,84716.0,84715.0,0.236085]
[1744629255357,0.00088437,84716.0,84715.0,0.35928741]
[1744629255558,0.00088437,84716.0,84715.0,0.40342654]
[1744629256892,0.00088437,84716.0,84715.0,0.40442654]
[1744629257352,0.00088437,84716.0,84715.0,0.40742654]
[1744629257585,0.00088437,84716.0,84715.0,0.42420185]
[1744629257815,0.00088437,84716.0,84715.0,0.42620185]
[1744629259020,6.7e-07,84722.0,84715.0,0.19011685]
[1744629259390,9.7e-07,84722.0,84721.0,0.282868]
[1744629259634,9.7e-07,84722.0,84721.0,0.44870954]
[1744629259907,2.7e-07,84727.0,84726.0,0.282855]
[1744629260392,2.7e-07,84727.0,84726.0,0.41107076]
[1744629260644,2.7e-07,84727.0,84726.0,0.42047185]
[1744629261142,3.7e-07,84734.0,84732.0,0.0495]
[1744629261378,1.7e-07,84750.0,84748.0,0.235993]
[1744629261579,1.7e-07,84750.0,84749.0,0.45609099]
[1744629261849,3e-07,84762.0,84761.0,0.235957]
[1744629262097,8e-07,84764.0,84761.0,0.41715465]
[1744629262337,8e-07,84764.0,84763.0,0.235952]
[1744629262588,0.0004215,84765.0,84763.0,0.36416776]
[1744629262844,0.00049774,84765.0,84764.0,0.12084154]
[1744629263076,0.00049774,84765.0,84764.0,0.13761685]
[1744629264178,0.00049774,84765.0,84764.0,0.13861685]
[1744629264382,0.00049774,84765.0,84764.0,0.13961685]
[1744629268068,0.00049774,84765.0,84764.0,0.13021576]
[1744629269557,0.00049774,84765.0,84764.0,0.12284154]
[1744629271398,0.00049774,84765.0,84764.0,0.1302117]
[1744629272388,0.00049774,84765.0,84764.0,0.12284154]
[1744629273902,0.00049774,84765.0,84764.0,0.002]
[1744629274423,0.34049774,84765.0,84764.0,0.002]
[1744629275181,0.34049774,84765.0,84764.0,0.237949]
[1744629275383,0.00049774,84765.0,84764.0,0.236949]
[1744629275786,0.00149774,84765.0,84764.0,0.001]
[1744629276399,0.00149774,84765.0,84762.0,0.235953]
[1744629276603,0.01329474,84765.0,84761.0,0.235956]
[1744629276924,0.00149774,84765.0,84763.0,0.235951]
[1744629277312,0.00049774,84765.0,84763.0,0.235951]
[1744629279236,0.00049774,84765.0,84763.0,0.23595]
[1744629282180,0.00049774,84765.0,84764.0,0.00737072]
[1744629284627,0.00049774,84765.0,84764.0,0.00837072]
[1744629284845,0.00049774,84765.0,84764.0,0.01772232]
[1744629285264,0.00049774,84765.0,84764.0,0.25367132]
[1744629285598,0.00049774,84765.0,84764.0,0.25567132]
[1744629288840,0.00049774,84765.0,84764.0,0.42351286]
[1744629289046,0.00049774,84765.0,84764.0,0.25567132]
[1744629289380,0.00585468,84765.0,84764.0,0.25567132]
[1744629289583,0.57644374,84765.0,84764.0,0.01972232]
[1744629289783,0.58180068,84765.0,84764.0,0.01972232]
[1744629289995,0.34585468,84765.0,84764.0,0.01972232]
[1744629290246,0.34585468,84765.0,84764.0,0.25567132]
[1744629290487,0.58180068,84765.0,84764.0,0.01972232]
[1744629290717,0.34585468,84765.0,84764.0,0.01972232]
[1744629291215,0.34585468,84765.0,84764.0,0.25567132]
[1744629291468,0.58180068,84765.0,84764.0,0.01972232]
[1744629291686,0.80094222,84765.0,84764.0,0.0123516]
[1744629291857,0.80094222,84765.0,84764.0,0.003]
[1744629292295,0.80094222,84765.0,84764.0,0.001]
[1744629292727,0.34,84754.0,84752.0,0.235981]
[1744629292896,0.34,84754.0,84753.0,0.2433511]
[1744629293988,0.34,84761.0,84758.0,0.235963]
[1744629294369,0.34,84761.0,84759.0,0.23596]
[1744629294592,0.34,84761.0,84760.0,0.23596]
[1744629295808,0.34870526,84761.0,84760.0,0.23596]
[1744629296013,0.34,84761.0,84760.0,0.23596]
[1744629296822,0.34528659,84761.0,84760.0,0.23596]
[1744629297926,0.00528659,84761.0,84760.0,0.23596]
[1744629298127,0.00528659,84761.0,84760.0,0.24333146]
[1744629301509,0.00049774,84765.0,84764.0,0.235949]
[1744629301708,0.00049774,84765.0,84764.0,0.24332046]
[1744629301905,0.00572391,84765.0,84764.0,0.459362]
[1744629302125,7.4e-07,84765.0,84764.0,0.459362]
[1744629302321,7.4e-07,84765.0,84764.0,0.46864984]
[1744629303382,7.4e-07,84765.0,84764.0,0.47064984]
[1744629304263,7.4e-07,84765.0,84764.0,0.47264984]
[1744629305588,7.4e-07,84765.0,84764.0,0.463362]
[1744629306303,7.4e-07,84765.0,84764.0,0.461362]
[1744629306612,7.4e-07,84765.0,84764.0,0.464362]
[1744629307005,7.4e-07,84765.0,84764.0,0.461362]
[1744629307216,7.4e-07,84765.0,84764.0,0.459362]
[1744629307475,7.4e-07,84765.0,84764.0,0.466362]
[1744629307657,7.4e-07,84765.0,84764.0,0.462362]
[1744629307797,7.4e-07,84765.0,84764.0,0.47164242]
[1744629308002,7.4e-07,84765.0,84764.0,0.47564242]
[1744629308641,7.4e-07,84765.0,84764.0,0.46827096]
[1744629308943,7.4e-07,84765.0,84764.0,0.45899054]
[1744629309836,7.4e-07,84765.0,84764.0,0.46635989]
[1744629310998,7.4e-07,84765.0,84764.0,0.47563565]
[1744629312327,7.4e-07,84765.0,84764.0,0.46635989]
[1744629314046,7.4e-07,84765.0,84764.0,0.41815989]
[1744629314723,7.4e-07,84765.0,84764.0,0.42743104]
[1744629315563,1.4e-07,84769.0,84768.0,0.235938]
[1744629315777,1.4e-07,84769.0,84768.0,0.40663831]
[1744629316001,1.4e-07,84769.0,84768.0,0.40427954]
[1744629316273,1.4e-07,84769.0,84768.0,0.44927954]
[1744629316484,1.4e-07,84769.0,84768.0,0.45664889]
[1744629316684,1.4e-07,84769.0,84768.0,0.46592004]
[1744629317091,0.53538955,84835.0,84798.0,0.235854]
[1744629317092,0.01179,84814.0,84798.0,0.235854]
[1744629317320,0.01,84820.0,84798.0,0.235854]
[1744629317321,0.00256054,84799.0,84798.0,0.235854]
[1744629317490,0.00256054,84799.0,84798.0,0.24558166]
[1744629317634,0.00256054,84799.0,84798.0,0.37333604]
[1744629318239,0.00256054,84799.0,84798.0,0.37633604]
[1744629318454,0.00256054,84799.0,84798.0,0.2554945]
[1744629318652,0.00256054,84799.0,84798.0,0.2584945]
[1744629318860,0.00256054,84799.0,84798.0,0.25112515]
[1744629319059,0.00741217,84799.0,84798.0,0.25112515]
[1744629319312,0.00741217,84799.0,84798.0,0.241854]
[1744629319313,0.00256054,84799.0,84798.0,0.241854]
[1744629319709,0.00256054,84799.0,84798.0,0.238854]
[1744629320212,0.00256054,84799.0,84798.0,0.241854]
[1744629320592,0.00256054,84799.0,84798.0,0.238854]
[1744629320776,0.00256054,84799.0,84798.0,0.236854]
[1744629320983,0.00256054,84799.0,84798.0,0.237854]
[1744629322918,0.00309218,84800.0,84799.0,0.235851]
[1744629323668,0.007949,84800.0,84799.0,0.235851]
[1744629324035,0.007949,84800.0,84799.0,0.237851]
[1744629324503,0.00309218,84800.0,84799.0,0.237851]
[1744629329765,0.00309218,84800.0,84799.0,0.284551]
[1744629334940,0.00309218,84800.0,84799.0,0.40539254]
[1744629335538,3.8e-07,84801.0,84800.0,0.285549]
[1744629335718,3.8e-07,84801.0,84800.0,0.40639054]
[1744629335875,3.8e-07,84801.0,84800.0,0.57231054]
[1744629336492,3.8e-07,84801.0,84800.0,0.40639054]
[1744629336687,3.8e-07,84801.0,84800.0,0.57231054]
[1744629336929,3.8e-07,84801.0,84800.0,0.57331054]
[1744629337118,3.8e-07,84801.0,84800.0,0.57431054]
[1744629337290,3.8e-07,84801.0,84800.0,0.57331054]
[1744629337695,3.8e-07,84801.0,84800.0,0.57831054]
[1744629338104,3.8e-07,84801.0,84800.0,0.41239054]
[1744629338783,3.8e-07,84801.0,84800.0,0.41139054]
[1744629339195,3.8e-07,84801.0,84800.0,0.41439054]
[1744629341810,3.8e-07,84801.0,84800.0,0.42175653]
[1744629342613,3.8e-07,84801.0,84800.0,0.43102505]
[1744629343262,3.8e-07,84801.0,84800.0,0.26048351]
[1744629344549,3.8e-07,84801.0,84800.0,0.25548351]
[1744629344746,3.8e-07,84801.0,84800.0,0.25848351]
[1744629344948,3.8e-07,84801.0,84800.0,0.25548351]
[1744629345390,3.8e-07,84801.0,84800.0,0.25748351]
[1744629347952,3.8e-07,84801.0,84800.0,0.37832505]
[1744629348309,3.8e-07,84801.0,84800.0,0.42562505]
[1744629351761,3.8e-07,84801.0,84800.0,0.37832505]
[1744629352162,3.8e-07,84801.0,84800.0,0.25748351]
[1744629352515,0.00498327,84801.0,84800.0,0.25748351]
[1744629352716,3.8e-07,84801.0,84800.0,0.25748351]
[1744629353138,3.8e-07,84801.0,84800.0,0.24821499]
[1744629354983,3.8e-07,84801.0,84800.0,0.25749867]
[1744629357082,3.8e-07,84801.0,84800.0,0.02164967]
[1744629357288,3.8e-07,84801.0,84800.0,0.25749867]
[1744629357727,3.8e-07,84801.0,84800.0,0.24821499]
[1744629358216,3.8e-07,84801.0,84800.0,0.01236599]
[1744629358415,3.8e-07,84801.0,84800.0,0.24821499]
[1744629358579,0.00498029,84801.0,84800.0,0.24821499]
[1744629359158,0.00498029,84801.0,84800.0,0.24621499]
[1744629359755,0.00498029,84801.0,84800.0,0.01036599]
[1744629360129,0.00498029,84801.0,84793.0,0.011793]
[1744629360130,0.011792,84797.0,84793.0,0.011793]
[1744629360311,0.011793,84795.0,84792.0,0.247663]
[1744629360563,0.235874,84791.0,84783.0,0.235895]
[1744629360843,0.235874,84791.0,84785.0,0.235889]
[1744629361012,0.00489402,84790.0,84787.0,0.011794]
[1744629361211,0.235881,84789.0,84786.0,0.011794]
[1744629361475,0.23591,84778.0,84776.0,0.01842227]
[1744629361679,0.235912,84778.0,84776.0,0.01842227]
[1744629361888,0.00480801,84777.0,84776.0,0.01842227]
[1744629362319,0.235911,84778.0,84776.0,0.01842227]
[1744629362524,0.00480801,84777.0,84776.0,0.01842227]
[1744629363055,0.00480801,84777.0,84776.0,0.02142227]
[1744629363681,0.00480801,84777.0,84776.0,0.02242227]
[1744629363892,0.00480801,84777.0,84776.0,0.42837881]
[1744629364085,0.00480801,84777.0,84776.0,0.02442227]
[1744629364297,0.235913,84778.0,84776.0,0.02442227]
[1744629364463,0.00480801,84777.0,84776.0,0.02442227]
[1744629364667,0.39140801,84777.0,84776.0,0.02442227]
[1744629364876,0.39140801,84777.0,84776.0,0.02242227]
[1744629365082,0.39140801,84777.0,84776.0,0.02342227]
[1744629365893,0.40029248,84777.0,84776.0,0.01942227]
[1744629366517,0.40029248,84777.0,84776.0,0.01842227]
[1744629367551,0.39140801,84777.0,84776.0,0.01842227]
[1744629367752,0.34480801,84777.0,84776.0,0.01842227]
[1744629367949,0.00480801,84777.0,84776.0,0.01842227]
[1744629368125,0.00480801,84777.0,84775.0,0.235916]
[1744629368357,0.587697,84781.0,84776.0,0.011795]
[1744629368581,0.2477,84780.0,84776.0,0.247709]
[1744629368928,0.011795,84779.0,84776.0,0.247709]
[1744629369135,0.247703,84779.0,84776.0,0.247709]
[1744629369363,0.011795,84779.0,84776.0,0.247709]
[1744629370010,0.011795,84780.0,84777.0,0.235911]
[1744629370227,0.34,84781.0,84779.0,0.235906]
[1744629370406,0.011793,84790.0,84786.0,0.011794]
[1744629370625,0.011793,84790.0,84782.0,0.011794]
[1744629370626,0.24768,84787.0,84783.0,0.235896]
[1744629370824,0.011794,84785.0,84782.0,0.011794]
[1744629371205,0.011794,84785.0,84782.0,0.247692]
[1744629371548,0.011794,84786.0,84782.0,0.247692]
[1744629371876,0.00477315,84785.0,84782.0,0.247692]
[1744629372107,0.25245815,84785.0,84782.0,0.011794]
[1744629372425,0.00477315,84785.0,84782.0,0.011794]
[1744629372711,0.25245815,84785.0,84782.0,0.011794]
[1744629372844,0.01656715,84785.0,84782.0,0.011794]
[1744629373270,0.25245815,84785.0,84782.0,0.247691]
[1744629373539,0.247685,84785.0,84782.0,0.011794]
[1744629373741,0.011795,84781.0,84778.0,0.011795]
[1744629374075,0.00478559,84780.0,84779.0,0.247699]
[1744629374494,0.247694,84782.0,84777.0,0.00736958]
[1744629374768,0.247703,84779.0,84776.0,0.02579417]
[1744629374981,0.235913,84777.0,84776.0,0.01842459]
[1744629375423,0.62834696,84777.0,84776.0,0.01842459]
[1744629375970,0.62834696,84777.0,84766.0,0.0008438]
[1744629375971,0.23594,84767.0,84766.0,0.0008438]
[1744629376377,0.24293227,84767.0,84766.0,0.0008438]